[Event "*** Titled Tuesday Blitz"]
[Site "Chess.com"]
[Date "2018.08.07"]
[Round "9"]
[White "eljanov"]
[Black "vpantev"]
[Result "1/2-1/2"]
[WhiteElo "2672"]
[BlackElo "2529"]
[TimeControl "180+2"]
[EndTime "15:09:33 PDT"]
[Termination "Game drawn by agreement"]

1. Nf3 {[%clk 0:03:01.3]} 1... Nf6 {[%clk 0:03:00]} 2. g3 {[%clk 0:03:02.1]}
2... d5 {[%clk 0:03:00.4]} 3. Bg2 {[%clk 0:03:03.3]} 3... Bf5 {[%clk 0:03:00.9]}
4. O-O {[%clk 0:03:02.6]} 4... e6 {[%clk 0:03:00.9]} 5. c4 {[%clk 0:03:03.5]}
5... c6 {[%clk 0:03:02.1]} 6. Qb3 {[%clk 0:03:04.1]} 6... Qb6 {[%clk 0:03:02.3]}
7. d3 {[%clk 0:03:04.9]} 7... Nbd7 {[%clk 0:03:02.9]} 8. Qc2 {[%clk 0:03:01]}
8... a5 {[%clk 0:02:56.4]} 9. cxd5 {[%clk 0:02:39.1]} 9... cxd5 {[%clk
0:02:55.8]} 10. Nc3 {[%clk 0:02:27.8]} 10... Be7 {[%clk 0:02:44.4]} 11. Be3
{[%clk 0:02:24.8]} 11... Qa6 {[%clk 0:02:40.7]} 12. Nd4 {[%clk 0:02:23.4]} 12...
Bg6 {[%clk 0:02:40.1]} 13. Ncb5 {[%clk 0:02:22.2]} 13... Bd8 {[%clk 0:02:29]}
14. Nc7+ {[%clk 0:02:15]} 14... Bxc7 {[%clk 0:02:29.5]} 15. Qxc7 {[%clk
0:02:15.9]} 15... O-O {[%clk 0:02:28.5]} 16. Rac1 {[%clk 0:02:16.5]} 16... h6
{[%clk 0:01:58.6]} 17. a4 {[%clk 0:02:02.4]} 17... e5 {[%clk 0:01:34]} 18. Nb5
{[%clk 0:02:03.2]} 18... Rac8 {[%clk 0:01:33.2]} 19. Qxc8 {[%clk 0:02:03.9]}
19... Rxc8 {[%clk 0:01:34.2]} 20. Rxc8+ {[%clk 0:02:05.1]} 20... Kh7 {[%clk
0:01:35.7]} 21. Rfc1 {[%clk 0:01:59.3]} 21... d4 {[%clk 0:01:33.2]} 22. Bd2
{[%clk 0:01:58.8]} 22... e4 {[%clk 0:01:34.5]} 23. dxe4 {[%clk 0:01:36.8]} 23...
Bxe4 {[%clk 0:01:34.7]} 24. Nxd4 {[%clk 0:01:31.8]} 24... Bxg2 {[%clk
0:01:21.1]} 25. Kxg2 {[%clk 0:01:33]} 25... Qb6 {[%clk 0:01:21.5]} 26. Nb5
{[%clk 0:01:10.5]} 26... Qe6 {[%clk 0:01:14.6]} 27. Be3 {[%clk 0:00:56.9]} 27...
Qe4+ {[%clk 0:01:11.3]} 28. Kg1 {[%clk 0:00:56.1]} 28... Ng4 {[%clk 0:00:59.7]}
29. R8c4 {[%clk 0:00:47.7]} 29... Qg6 {[%clk 0:01:00.2]} 30. Bd4 {[%clk
0:00:46.7]} 30... Qh5 {[%clk 0:00:50.3]} 31. h4 {[%clk 0:00:47.7]} 31... Ngf6
{[%clk 0:00:50.7]} 32. Bxf6 {[%clk 0:00:47.6]} 32... Nxf6 {[%clk 0:00:51]} 33.
f3 {[%clk 0:00:47]} 33... Qe5 {[%clk 0:00:48.9]} 34. Kf2 {[%clk 0:00:47.6]}
34... Qxb2 {[%clk 0:00:48]} 35. R1c3 {[%clk 0:00:45.8]} 35... Qa1 {[%clk
0:00:46.3]} 36. Rc1 {[%clk 0:00:41.6]} 36... Qe5 {[%clk 0:00:43.8]} 37. Rc5
{[%clk 0:00:38]} 37... Qe6 {[%clk 0:00:44.4]} 38. Nd4 {[%clk 0:00:35.9]} 38...
Qh3 {[%clk 0:00:42.7]} 39. Rg1 {[%clk 0:00:36.8]} 39... Qd7 {[%clk 0:00:43.3]}
40. Nb5 {[%clk 0:00:35.3]} 40... Qe7 {[%clk 0:00:40.9]} 41. Rc4 {[%clk
0:00:35.8]} 41... Qe6 {[%clk 0:00:37.8]} 42. Rd4 {[%clk 0:00:36]} 42... Qf5
{[%clk 0:00:34.3]} 43. g4 {[%clk 0:00:36.1]} 43... Qc5 {[%clk 0:00:34.9]} 44. h5
{[%clk 0:00:35.4]} 44... Nd5 {[%clk 0:00:27.6]} 45. Rd1 {[%clk 0:00:34.2]} 45...
Nb6 {[%clk 0:00:27.9]} 46. Nd6 {[%clk 0:00:25.7]} 46... Nxa4 {[%clk 0:00:21.4]}
47. Ne4 {[%clk 0:00:25.2]} 47... Qb6 {[%clk 0:00:20.7]} 48. Kg2 {[%clk
0:00:25.1]} 48... Nc5 {[%clk 0:00:21.4]} 49. Nxc5 {[%clk 0:00:22.6]} 49... Qxc5
{[%clk 0:00:22.3]} 50. Rd8 {[%clk 0:00:24.1]} 50... Qe5 {[%clk 0:00:20.2]} 51.
Kf1 {[%clk 0:00:24.1]} 51... g6 {[%clk 0:00:21.4]} 52. R1d7 {[%clk 0:00:24.3]}
52... Kg7 {[%clk 0:00:21.4]} 53. hxg6 {[%clk 0:00:24.6]} 53... Kxg6 {[%clk
0:00:22.7]} 54. Rg8+ {[%clk 0:00:25.3]} 54... Kf6 {[%clk 0:00:23.3]} 55. Rf8
{[%clk 0:00:26.5]} 55... Qa1+ {[%clk 0:00:22.1]} 56. Kf2 {[%clk 0:00:26.2]}
56... Qa2 {[%clk 0:00:23.2]} 57. Rxb7 {[%clk 0:00:26.9]} 57... a4 {[%clk
0:00:24.6]} 58. Ra7 {[%clk 0:00:28]} 58... Qb3 {[%clk 0:00:24.7]} 59. Rfa8
{[%clk 0:00:27.4]} 59... Qb6+ {[%clk 0:00:25.9]} 60. Kf1 {[%clk 0:00:28.6]}
60... Qb1+ {[%clk 0:00:26.8]} 61. Kg2 {[%clk 0:00:28.8]} 61... Qc2 {[%clk
0:00:26.6]} 62. Kf2 {[%clk 0:00:29.1]} 62... Qc5+ {[%clk 0:00:27.3]} 63. e3
{[%clk 0:00:30.3]} 63... Qc2+ {[%clk 0:00:28.2]} 64. Kg3 {[%clk 0:00:31.5]}
64... Qc1 {[%clk 0:00:23.5]} 65. Rxa4 {[%clk 0:00:32.2]} 65... Qg1+ {[%clk
0:00:23.9]} 66. Kf4 {[%clk 0:00:33]} 66... Qh2+ {[%clk 0:00:23.6]} 67. Ke4
{[%clk 0:00:34.3]} 67... Qe5+ {[%clk 0:00:24.6]} 68. Kd3 {[%clk 0:00:35.6]}
68... Qb5+ {[%clk 0:00:25.8]} 69. Kc3 {[%clk 0:00:35.6]} 69... Qc5+ {[%clk
0:00:26.3]} 70. Kd2 {[%clk 0:00:36.9]} 70... Qd5+ {[%clk 0:00:25.2]} 71. Ke2
{[%clk 0:00:37.2]} 71... Qb5+ {[%clk 0:00:25.7]} 72. Kf2 {[%clk 0:00:38.6]}
72... Qb2+ {[%clk 0:00:26.7]} 73. Kg3 {[%clk 0:00:38.6]} 73... Qe2 {[%clk
0:00:27.9]} 74. Rf4+ {[%clk 0:00:37.3]} 74... Kg7 {[%clk 0:00:27]} 75. Ra1
{[%clk 0:00:34.4]} 75... Qxe3 {[%clk 0:00:24.8]} 76. Rf5 {[%clk 0:00:35.1]}
76... Qe7 {[%clk 0:00:24.1]} 77. Ra2 {[%clk 0:00:34.8]} 77... Qc7+ {[%clk
0:00:25.1]} 78. Kg2 {[%clk 0:00:35.8]} 78... Qd7 {[%clk 0:00:25.1]} 79. Rc2
{[%clk 0:00:35.5]} 79... Qb7 {[%clk 0:00:24.3]} 80. Rfc5 {[%clk 0:00:36.3]}
80... Qd7 {[%clk 0:00:23.5]} 81. Rc7 {[%clk 0:00:37.2]} 81... Qd5 {[%clk
0:00:24.2]} 82. Rb2 {[%clk 0:00:36.4]} 82... h5 {[%clk 0:00:24.6]} 83. Rbb7
{[%clk 0:00:32]} 83... hxg4 {[%clk 0:00:25.4]} 84. Rxf7+ {[%clk 0:00:30.3]}
84... Qxf7 {[%clk 0:00:26.4]} 85. Rxf7+ {[%clk 0:00:31.3]} 85... Kxf7 {[%clk
0:00:27.6]} 86. fxg4 {[%clk 0:00:32.6]} 86... Kf6 {[%clk 0:00:29]} 1/2-1/2

[Event "*** Titled Tuesday Blitz"]
[Site "Chess.com"]
[Date "2018.08.07"]
[Round "9"]
[White "Korchmar_Vasiliy"]
[Black "ahmadzada13"]
[Result "1-0"]
[WhiteElo "2636"]
[BlackElo "2652"]
[TimeControl "180+2"]
[EndTime "15:11:17 PDT"]
[Termination "Korchmar_Vasiliy won by resignation"]

1. d4 {[%clk 0:03:01.3]} 1... Nf6 {[%clk 0:03:00.6]} 2. Nf3 {[%clk 0:03:02.7]}
2... g6 {[%clk 0:03:00.9]} 3. Bg5 {[%clk 0:03:02.8]} 3... Ne4 {[%clk 0:03:01.2]}
4. Bh4 {[%clk 0:03:03.4]} 4... Bg7 {[%clk 0:03:00.3]} 5. e3 {[%clk 0:03:04.6]}
5... c5 {[%clk 0:03:00.1]} 6. c3 {[%clk 0:03:00.7]} 6... Qb6 {[%clk 0:02:46.2]}
7. Nbd2 {[%clk 0:02:55.5]} 7... d5 {[%clk 0:02:43.5]} 8. Qb3 {[%clk 0:02:39.1]}
8... Nxd2 {[%clk 0:02:30.9]} 9. Nxd2 {[%clk 0:02:41]} 9... c4 {[%clk 0:02:29.1]}
10. Qa3 {[%clk 0:02:38.2]} 10... Bf8 {[%clk 0:02:21]} 11. b3 {[%clk 0:02:28.1]}
11... e6 {[%clk 0:02:15.4]} 12. Qc1 {[%clk 0:02:27.6]} 12... cxb3 {[%clk
0:02:14.4]} 13. axb3 {[%clk 0:02:26.2]} 13... Bg7 {[%clk 0:02:14]} 14. c4 {[%clk
0:02:17.2]} 14... Nc6 {[%clk 0:02:11.6]} 15. c5 {[%clk 0:02:06]} 15... Qc7
{[%clk 0:02:07.2]} 16. Be2 {[%clk 0:02:02.5]} 16... e5 {[%clk 0:02:01.4]} 17.
Bg3 {[%clk 0:02:03.3]} 17... Qe7 {[%clk 0:01:59.5]} 18. dxe5 {[%clk 0:01:58.4]}
18... Nxe5 {[%clk 0:01:55.9]} 19. O-O {[%clk 0:01:58.5]} 19... O-O {[%clk
0:01:55.8]} 20. b4 {[%clk 0:01:52.9]} 20... Bf5 {[%clk 0:01:50.4]} 21. Ra3
{[%clk 0:01:47.6]} 21... Rfc8 {[%clk 0:01:37.6]} 22. Nf3 {[%clk 0:01:42.9]}
22... Nc6 {[%clk 0:01:29.9]} 23. b5 {[%clk 0:01:37.3]} 23... Ne5 {[%clk
0:01:28.2]} 24. Nxe5 {[%clk 0:01:34.1]} 24... Bxe5 {[%clk 0:01:29.5]} 25. Bxe5
{[%clk 0:01:36]} 25... Qxe5 {[%clk 0:01:30.6]} 26. Rd1 {[%clk 0:01:32.3]} 26...
d4 {[%clk 0:01:28.7]} 27. Rxd4 {[%clk 0:01:10.8]} 27... Rxc5 {[%clk 0:01:24.2]}
28. Rc3 {[%clk 0:01:09.5]} 28... Rxc3 {[%clk 0:01:21.4]} 29. Qxc3 {[%clk
0:01:11.4]} 29... Kg7 {[%clk 0:01:19.1]} 30. f4 {[%clk 0:01:07.1]} 30... Qf6
{[%clk 0:01:16]} 31. g4 {[%clk 0:00:50.5]} 31... Rc8 {[%clk 0:01:07.4]} 32. Qa1
{[%clk 0:00:51.5]} 32... Bxg4 {[%clk 0:01:02.3]} 33. Bxg4 {[%clk 0:00:53.4]}
33... Rc2 {[%clk 0:00:57.6]} 34. Qd1 {[%clk 0:00:42.2]} 34... Rb2 {[%clk
0:00:53]} 35. Rd7 {[%clk 0:00:40.8]} 35... Kh6 {[%clk 0:00:40.8]} 36. Rd2 {[%clk
0:00:18.7]} 36... Rxb5 {[%clk 0:00:37.3]} 37. Bf3 {[%clk 0:00:15.9]} 37... Qe6
{[%clk 0:00:33.5]} 38. Kg2 {[%clk 0:00:15.1]} 38... Qxe3 {[%clk 0:00:31.5]} 39.
Rf2 {[%clk 0:00:13.7]} 39... Rb4 {[%clk 0:00:28.9]} 40. f5 {[%clk 0:00:12.4]}
40... Qg5+ {[%clk 0:00:26.6]} 41. Kh1 {[%clk 0:00:13.5]} 41... Qxf5 {[%clk
0:00:25.3]} 42. Qd2+ {[%clk 0:00:14.5]} 42... Qf4 {[%clk 0:00:22.2]} 43. Qe1
{[%clk 0:00:15.6]} 43... Qd4 {[%clk 0:00:17.6]} 44. Rf1 {[%clk 0:00:13.4]} 44...
Rb2 {[%clk 0:00:15.3]} 45. Bg2 {[%clk 0:00:14.1]} 45... f5 {[%clk 0:00:13.4]}
46. Qc1+ {[%clk 0:00:12.8]} 46... Qd2 {[%clk 0:00:12.9]} 47. Qxd2+ {[%clk
0:00:13.7]} 47... Rxd2 {[%clk 0:00:14.5]} 48. Bxb7 {[%clk 0:00:11.7]} 48... Rb2
{[%clk 0:00:13.3]} 49. Bg2 {[%clk 0:00:11.7]} 49... a5 {[%clk 0:00:13.3]} 50.
Ra1 {[%clk 0:00:12.1]} 50... Rb5 {[%clk 0:00:14.5]} 51. Kg1 {[%clk 0:00:08.4]}
51... Re5 {[%clk 0:00:15.9]} 52. Kf2 {[%clk 0:00:09.5]} 52... Kg5 {[%clk
0:00:17.4]} 53. Ra4 {[%clk 0:00:09.8]} 53... f4 {[%clk 0:00:15.2]} 54. Bf3
{[%clk 0:00:10.2]} 54... h5 {[%clk 0:00:15.6]} 55. Kg2 {[%clk 0:00:09.6]} 55...
Kf5 {[%clk 0:00:16.8]} 56. Kf2 {[%clk 0:00:08.8]} 56... Rc5 {[%clk 0:00:17.3]}
57. h4 {[%clk 0:00:07.9]} 57... Rc2+ {[%clk 0:00:16.8]} 58. Be2 {[%clk
0:00:08.2]} 58... Rc5 {[%clk 0:00:12.1]} 59. Kf3 {[%clk 0:00:09.1]} 59... Rc3+
{[%clk 0:00:12.5]} 60. Kf2 {[%clk 0:00:10.5]} 60... Rc5 {[%clk 0:00:08.8]} 61.
Ra2 {[%clk 0:00:11.6]} 61... Re5 {[%clk 0:00:07.8]} 62. Kf3 {[%clk 0:00:10.5]}
62... Re3+ {[%clk 0:00:08.3]} 63. Kf2 {[%clk 0:00:11.8]} 63... Re5 {[%clk
0:00:09.7]} 64. Ra3 {[%clk 0:00:12.9]} 64... g5 {[%clk 0:00:08.1]} 65. hxg5
{[%clk 0:00:11.3]} 65... Kxg5 {[%clk 0:00:09.7]} 66. Ra1 {[%clk 0:00:11.6]}
66... Re3 {[%clk 0:00:05.8]} 67. Rg1+ {[%clk 0:00:12.6]} 67... Rg3 {[%clk
0:00:06.3]} 68. Rc1 {[%clk 0:00:12.5]} 68... Kh4 {[%clk 0:00:05.5]} 69. Rc4
{[%clk 0:00:09.7]} 69... Kg5 {[%clk 0:00:05.6]} 70. Rc5+ {[%clk 0:00:10.5]}
70... Kf6 {[%clk 0:00:06.9]} 71. Rxh5 {[%clk 0:00:11.2]} 71... Ra3 {[%clk
0:00:07.9]} 72. Rb5 {[%clk 0:00:07.4]} 72... Ke6 {[%clk 0:00:08.4]} 73. Bg4+
{[%clk 0:00:07.6]} 73... Kd6 {[%clk 0:00:07.4]} 74. Bf3 {[%clk 0:00:08.7]} 74...
Ke6 {[%clk 0:00:08.4]} 75. Be4 {[%clk 0:00:08.6]} 75... Kd6 {[%clk 0:00:08.4]}
76. Bg2 {[%clk 0:00:07.9]} 76... Ke6 {[%clk 0:00:08.6]} 77. Rh5 {[%clk 0:00:09]}
77... Kd6 {[%clk 0:00:09.1]} 78. Bf1 {[%clk 0:00:09.9]} 78... Ke6 {[%clk
0:00:09.9]} 79. Bc4+ {[%clk 0:00:11.1]} 79... Kf6 {[%clk 0:00:10.9]} 80. Rc5
{[%clk 0:00:10.9]} 80... Kg6 {[%clk 0:00:09.1]} 81. Rb5 {[%clk 0:00:12.1]} 81...
Kf6 {[%clk 0:00:10.1]} 82. Bb3 {[%clk 0:00:11]} 82... Kg6 {[%clk 0:00:09.2]} 83.
Bc2+ {[%clk 0:00:11.4]} 83... Kf6 {[%clk 0:00:08.3]} 84. Bb1 {[%clk 0:00:11.8]}
84... Ke6 {[%clk 0:00:08.6]} 85. Bf5+ {[%clk 0:00:11.3]} 85... Kf6 {[%clk
0:00:09.7]} 86. Bg4 {[%clk 0:00:12.7]} 86... Kg6 {[%clk 0:00:10.4]} 87. Rf5
{[%clk 0:00:12.5]} 87... Ra4 {[%clk 0:00:10.8]} 88. Re5 {[%clk 0:00:12.5]} 88...
Kf6 {[%clk 0:00:11.6]} 89. Rb5 {[%clk 0:00:12.9]} 89... Kg6 {[%clk 0:00:09.9]}
90. Kf3 {[%clk 0:00:14]} 90... Kf6 {[%clk 0:00:11.3]} 91. Bf5 {[%clk 0:00:12.8]}
91... Kf7 {[%clk 0:00:09.2]} 92. Be4 {[%clk 0:00:13.3]} 92... Ke7 {[%clk
0:00:07.4]} 93. Kxf4 {[%clk 0:00:14.7]} 93... Kd6 {[%clk 0:00:09]} 94. Rd5+
{[%clk 0:00:13.5]} 94... Kc7 {[%clk 0:00:09.4]} 95. Ke5 {[%clk 0:00:11.4]} 95...
Ra1 {[%clk 0:00:09.5]} 96. Rb5 {[%clk 0:00:10.6]} 96... a4 {[%clk 0:00:08.8]}
97. Rb7+ {[%clk 0:00:10.6]} 97... Kd8 {[%clk 0:00:08.2]} 98. Kd6 {[%clk
0:00:10.7]} 98... Rd1+ {[%clk 0:00:04.5]} 99. Bd5 {[%clk 0:00:12]} 99... Kc8
{[%clk 0:00:05.8]} 100. Ra7 {[%clk 0:00:12.2]} 100... Rb1 {[%clk 0:00:07.1]}
101. Rh7 {[%clk 0:00:07.5]} 101... Rb6+ {[%clk 0:00:05.5]} 102. Bc6 {[%clk
0:00:08.4]} 102... Kb8 {[%clk 0:00:03.9]} 103. Rh8+ {[%clk 0:00:09.2]} 1-0

[Event "*** Titled Tuesday Blitz"]
[Site "Chess.com"]
[Date "2018.08.07"]
[Round "9"]
[White "narutosmith"]
[Black "dmosesov"]
[Result "1/2-1/2"]
[WhiteElo "2117"]
[BlackElo "2263"]
[TimeControl "180+2"]
[EndTime "15:11:29 PDT"]
[Termination "Game drawn - insufficient material"]

1. e4 {[%clk 0:03:00.2]} 1... c5 {[%clk 0:03:00.5]} 2. Nc3 {[%clk 0:03:01.1]}
2... a6 {[%clk 0:03:01]} 3. f4 {[%clk 0:02:59]} 3... b5 {[%clk 0:03:01.6]} 4. g3
{[%clk 0:02:58]} 4... Bb7 {[%clk 0:03:02.4]} 5. Bg2 {[%clk 0:02:59.1]} 5... Nf6
{[%clk 0:02:54.6]} 6. d3 {[%clk 0:02:55.6]} 6... e6 {[%clk 0:02:55.5]} 7. Qe2
{[%clk 0:02:52.4]} 7... Nc6 {[%clk 0:02:39.4]} 8. Nf3 {[%clk 0:02:43.9]} 8... d6
{[%clk 0:02:30.7]} 9. O-O {[%clk 0:02:38.2]} 9... Be7 {[%clk 0:02:31.9]} 10. e5
{[%clk 0:02:16.6]} 10... dxe5 {[%clk 0:02:18.8]} 11. fxe5 {[%clk 0:02:17.2]}
11... Nd7 {[%clk 0:02:15.6]} 12. Ne4 {[%clk 0:01:52]} 12... Ndxe5 {[%clk
0:01:49.1]} 13. Be3 {[%clk 0:01:11.8]} 13... Nxf3+ {[%clk 0:01:26.6]} 14. Qxf3
{[%clk 0:01:09.9]} 14... O-O {[%clk 0:01:27.6]} 15. Nxc5 {[%clk 0:00:42.5]}
15... Nd4 {[%clk 0:00:40.4]} 16. Qxb7 {[%clk 0:00:16.9]} 16... Rb8 {[%clk
0:00:38.2]} 17. Qe4 {[%clk 0:00:06.2]} 17... Bxc5 {[%clk 0:00:38.3]} 18. c3
{[%clk 0:00:05]} 18... Ne2+ {[%clk 0:00:18.3]} 19. Kh1 {[%clk 0:00:05.6]} 19...
Bd6 {[%clk 0:00:13.1]} 20. Qf3 {[%clk 0:00:06]} 20... Nxg3+ {[%clk 0:00:11.2]}
21. hxg3 {[%clk 0:00:06.7]} 21... b4 {[%clk 0:00:12.6]} 22. d4 {[%clk
0:00:06.7]} 22... bxc3 {[%clk 0:00:12.9]} 23. bxc3 {[%clk 0:00:08]} 23... Rb5
{[%clk 0:00:14]} 24. Rab1 {[%clk 0:00:06.8]} 24... Ra5 {[%clk 0:00:13.9]} 25.
Rb2 {[%clk 0:00:07.1]} 25... Rf5 {[%clk 0:00:12.4]} 26. Qg4 {[%clk 0:00:05.5]}
26... Rxf1+ {[%clk 0:00:11.2]} 27. Bxf1 {[%clk 0:00:06.8]} 27... Qf6 {[%clk
0:00:12.9]} 28. Bg2 {[%clk 0:00:07.4]} 28... Rc8 {[%clk 0:00:11.6]} 29. Rf2
{[%clk 0:00:07.3]} 29... Qg6 {[%clk 0:00:08.3]} 30. Qxg6 {[%clk 0:00:08.2]}
30... hxg6 {[%clk 0:00:10.2]} 31. Rc2 {[%clk 0:00:09.1]} 31... Bxg3 {[%clk
0:00:10.8]} 32. Bb7 {[%clk 0:00:10.1]} 32... Rc7 {[%clk 0:00:11]} 33. Bxa6
{[%clk 0:00:11.1]} 33... Bd6 {[%clk 0:00:12.6]} 34. a4 {[%clk 0:00:11.7]} 34...
Bb4 {[%clk 0:00:13.3]} 35. Bd2 {[%clk 0:00:10.9]} 35... Ba5 {[%clk 0:00:12.2]}
36. Bd3 {[%clk 0:00:11.3]} 36... f5 {[%clk 0:00:12.6]} 37. c4 {[%clk 0:00:12.2]}
37... Bxd2 {[%clk 0:00:13.6]} 38. Rxd2 {[%clk 0:00:13.4]} 38... Kf7 {[%clk
0:00:15.5]} 39. a5 {[%clk 0:00:13.6]} 39... Ra7 {[%clk 0:00:16.4]} 40. Ra2
{[%clk 0:00:14.3]} 40... e5 {[%clk 0:00:17.1]} 41. dxe5 {[%clk 0:00:14.8]} 41...
Ke6 {[%clk 0:00:18.5]} 42. a6 {[%clk 0:00:15.9]} 42... Kxe5 {[%clk 0:00:19.5]}
43. Ra5+ {[%clk 0:00:14.8]} 43... Kd4 {[%clk 0:00:20.4]} 44. Rd5+ {[%clk
0:00:15.6]} 44... Kc3 {[%clk 0:00:21.1]} 45. c5 {[%clk 0:00:16.6]} 45... Rc7
{[%clk 0:00:19.7]} 46. Bb5 {[%clk 0:00:15.7]} 46... Kb4 {[%clk 0:00:20.4]} 47.
Rd7 {[%clk 0:00:14.7]} 47... Rc8 {[%clk 0:00:19.3]} 48. Rb7 {[%clk 0:00:13]}
48... Kxc5 {[%clk 0:00:20]} 49. Bd7 {[%clk 0:00:13.7]} 49... Ra8 {[%clk
0:00:20.7]} 50. a7 {[%clk 0:00:14.1]} 50... Kd6 {[%clk 0:00:16.8]} 51. Kg2
{[%clk 0:00:14.5]} 51... f4 {[%clk 0:00:16.2]} 52. Kf3 {[%clk 0:00:15.4]} 52...
g5 {[%clk 0:00:17.4]} 53. Kg4 {[%clk 0:00:16.4]} 53... g6 {[%clk 0:00:17.5]} 54.
Kxg5 {[%clk 0:00:16.8]} 54... f3 {[%clk 0:00:18.8]} 55. Bh3 {[%clk 0:00:16.3]}
55... f2 {[%clk 0:00:19.8]} 56. Bf1 {[%clk 0:00:17.2]} 56... Kc6 {[%clk
0:00:20.6]} 57. Rg7 {[%clk 0:00:17.6]} 57... Kb6 {[%clk 0:00:21.8]} 58. Rxg6+
{[%clk 0:00:18.7]} 58... Kxa7 {[%clk 0:00:23.1]} 59. Rg7+ {[%clk 0:00:20.1]}
59... Kb6 {[%clk 0:00:24.4]} 60. Rg6+ {[%clk 0:00:21]} 60... Kc5 {[%clk
0:00:25.3]} 61. Rf6 {[%clk 0:00:21.7]} 61... Ra2 {[%clk 0:00:25.7]} 62. Kg4
{[%clk 0:00:22]} 62... Kd4 {[%clk 0:00:26.9]} 63. Kg3 {[%clk 0:00:22.3]} 63...
Ke5 {[%clk 0:00:25.3]} 64. Rf3 {[%clk 0:00:22.2]} 64... Ke4 {[%clk 0:00:25.6]}
65. Kg2 {[%clk 0:00:22.7]} 65... Rb2 {[%clk 0:00:25.3]} 66. Bd3+ {[%clk
0:00:23.5]} 66... Kd4 {[%clk 0:00:25.4]} 67. Bf1 {[%clk 0:00:24.4]} 67... Ke4
{[%clk 0:00:26.4]} 68. Rf8 {[%clk 0:00:25.1]} 68... Ke5 {[%clk 0:00:25.6]} 69.
Re8+ {[%clk 0:00:25.6]} 69... Kf4 {[%clk 0:00:26.7]} 70. Be2 {[%clk 0:00:25]}
70... Ra2 {[%clk 0:00:18.4]} 71. Kxf2 {[%clk 0:00:25.2]} 71... Rb2 {[%clk
0:00:19.7]} 72. Ke1 {[%clk 0:00:24.6]} 72... Ra2 {[%clk 0:00:18.6]} 73. Kf2
{[%clk 0:00:24.6]} 73... Rb2 {[%clk 0:00:19.5]} 74. Re3 {[%clk 0:00:25.4]} 74...
Ra2 {[%clk 0:00:20.4]} 75. Re8 {[%clk 0:00:25.7]} 75... Rb2 {[%clk 0:00:21.1]}
76. Rf8+ {[%clk 0:00:26.8]} 76... Ke4 {[%clk 0:00:22.1]} 77. Rf3 {[%clk
0:00:26.7]} 77... Ra2 {[%clk 0:00:22.9]} 78. Re3+ {[%clk 0:00:27.7]} 78... Kf4
{[%clk 0:00:23.9]} 79. Re8 {[%clk 0:00:28.4]} 79... Rb2 {[%clk 0:00:25]} 80. Ke1
{[%clk 0:00:29.3]} 80... Ra2 {[%clk 0:00:25.8]} 81. Kd1 {[%clk 0:00:29.5]} 81...
Rb2 {[%clk 0:00:25.8]} 82. Kc1 {[%clk 0:00:29.9]} 82... Rb7 {[%clk 0:00:25.9]}
83. Kc2 {[%clk 0:00:29.8]} 83... Rd7 {[%clk 0:00:26.6]} 84. Bc4 {[%clk
0:00:29.1]} 84... Rd4 {[%clk 0:00:26.3]} 85. Kc3 {[%clk 0:00:29.9]} 85... Rd1
{[%clk 0:00:27.5]} 86. Rf8+ {[%clk 0:00:30.5]} 86... Ke3 {[%clk 0:00:27.1]} 87.
Re8+ {[%clk 0:00:30.8]} 87... Kf4 {[%clk 0:00:28.4]} 88. Re2 {[%clk 0:00:30.7]}
88... Rd8 {[%clk 0:00:27.9]} 89. Bd3 {[%clk 0:00:30.5]} 89... Kf3 {[%clk
0:00:28.9]} 90. Re7 {[%clk 0:00:30.9]} 90... Kf4 {[%clk 0:00:24.4]} 91. Kd2
{[%clk 0:00:30.4]} 91... Ra8 {[%clk 0:00:21.8]} 92. Rf7+ {[%clk 0:00:28.1]}
92... Ke5 {[%clk 0:00:22.4]} 93. Rf5+ {[%clk 0:00:28.8]} 93... Kd4 {[%clk
0:00:21.9]} 94. Rf7 {[%clk 0:00:27.1]} 94... Ra2+ {[%clk 0:00:22]} 95. Bc2
{[%clk 0:00:28.1]} 95... Ra3 {[%clk 0:00:23.3]} 96. Rd7+ {[%clk 0:00:28.1]}
96... Ke5 {[%clk 0:00:23.4]} 97. Rc7 {[%clk 0:00:27.9]} 97... Kd4 {[%clk
0:00:24.1]} 98. Rd7+ {[%clk 0:00:28.2]} 98... Ke5 {[%clk 0:00:25.2]} 99. Bd3
{[%clk 0:00:27.4]} 99... Ra1 {[%clk 0:00:24.2]} 100. Ke3 {[%clk 0:00:27.6]}
100... Re1+ {[%clk 0:00:25.1]} 101. Be2 {[%clk 0:00:28.3]} 101... Ra1 {[%clk
0:00:25.5]} 102. Rb7 {[%clk 0:00:28.7]} 102... Kd5 {[%clk 0:00:25]} 103. Rb5+
{[%clk 0:00:27.8]} 103... Kc6 {[%clk 0:00:26.1]} 104. Kd4 {[%clk 0:00:27.8]}
104... Ra4+ {[%clk 0:00:25.8]} 105. Bc4 {[%clk 0:00:27.8]} 105... Ra1 {[%clk
0:00:26.8]} 106. Rc5+ {[%clk 0:00:27.4]} 106... Kd6 {[%clk 0:00:28.1]} 107. Rd5+
{[%clk 0:00:27.9]} 107... Kc6 {[%clk 0:00:29.1]} 108. Bb5+ {[%clk 0:00:27.3]}
108... Kb6 {[%clk 0:00:30]} 109. Bd7 {[%clk 0:00:27.8]} 109... Rd1+ {[%clk
0:00:30.4]} 110. Ke5 {[%clk 0:00:29.1]} 110... Rxd5+ {[%clk 0:00:32.3]} 111.
Kxd5 {[%clk 0:00:30.7]} 1/2-1/2

[Event "*** Titled Tuesday Blitz"]
[Site "Chess.com"]
[Date "2018.08.07"]
[Round "10"]
[White "b_6"]
[Black "CookiesAndIceCream"]
[Result "1-0"]
[WhiteElo "2381"]
[BlackElo "2246"]
[TimeControl "180+2"]
[EndTime "15:15:00 PDT"]
[Termination "b_6 won by resignation"]

1. d4 {[%clk 0:03:01.9]} 1... Nf6 {[%clk 0:03:00.7]} 2. Bf4 {[%clk 0:03:01.8]}
2... d5 {[%clk 0:03:01.4]} 3. e3 {[%clk 0:03:02.7]} 3... e6 {[%clk 0:03:02.8]}
4. Nd2 {[%clk 0:03:03.3]} 4... Bd6 {[%clk 0:03:04.3]} 5. Bg3 {[%clk 0:03:04.3]}
5... c5 {[%clk 0:03:05.5]} 6. c3 {[%clk 0:03:04.8]} 6... Qc7 {[%clk 0:03:04.6]}
7. Ngf3 {[%clk 0:02:58.3]} 7... Nbd7 {[%clk 0:03:05.8]} 8. Bd3 {[%clk
0:02:17.4]} 8... O-O {[%clk 0:03:06.2]} 9. e4 {[%clk 0:02:16.3]} 9... dxe4
{[%clk 0:02:49.3]} 10. Nxe4 {[%clk 0:02:16.9]} 10... Nxe4 {[%clk 0:02:49.2]} 11.
Bxe4 {[%clk 0:02:18]} 11... Nf6 {[%clk 0:02:39.4]} 12. Bc2 {[%clk 0:02:12.9]}
12... b6 {[%clk 0:02:14.4]} 13. dxc5 {[%clk 0:01:47.9]} 13... Qxc5 {[%clk
0:02:10.5]} 14. Bxd6 {[%clk 0:01:42.1]} 1-0